[Event "Snabbschacks-KM 2025"]
[Site "Linköping, Sweden"]
[Date "2025.05.20"]
[Round "8.1"]
[White "Nyberg, Peter"]
[Black "Andersson, Mats 1960"]
[Result "0-1"]
[TimeControl "15 min + 5 sek"]
[BlackTitle "FM"]
[WhiteElo "1984"]
[BlackElo "2225"]

1. c4 {[%clk 00:15:08]} {[%emt 00:00:02]} e6 {[%clk 00:15:08]} {[%emt
00:00:02]} 2. e4 {[%clk 00:15:10]} {[%emt 00:00:03]} d5 {[%clk 00:15:09]}
{[%emt 00:00:04]} 3. cxd5 {[%clk 00:15:12]} {[%emt 00:00:03]} exd5 {[%clk
00:15:12]} {[%emt 00:00:01]} 4. Qb3 {[%clk 00:15:12]} {[%emt 00:00:05]} Qe7
{[%clk 00:13:14]} {[%emt 00:02:03]} 5. Nc3 {[%clk 00:12:44]} {[%emt 00:02:34]}
c6 {[%clk 00:13:18]} {[%emt 00:00:01]} 6. Nf3 {[%clk 00:11:33]} {[%emt
00:01:16]} dxe4 {[%clk 00:11:34]} {[%emt 00:01:49]} 7. Nd4 {[%clk 00:11:12]}
{[%emt 00:00:26]} Nf6 {[%clk 00:11:04]} {[%emt 00:00:35]} 8. Bc4 {[%clk
00:09:12]} {[%emt 00:02:05]} g6 {[%clk 00:10:56]} {[%emt 00:00:13]} 9. O-O
{[%clk 00:08:33]} {[%emt 00:00:45]} Bg7 {[%clk 00:10:59]} 10. d3 {[%clk
00:08:09]} {[%emt 00:00:29]} O-O {[%clk 00:10:37]} {[%emt 00:00:27]} 11. Re1
{[%clk 00:07:20]} {[%emt 00:00:54]} b5 {[%clk 00:08:13]} {[%emt 00:02:30]} 12.
Ndxb5 {[%clk 00:06:46]} {[%emt 00:00:39]} cxb5 {[%clk 00:08:16]} {[%emt
00:00:02]} 13. Nxb5 {[%clk 00:06:30]} {[%emt 00:00:21]} Na6 {[%clk 00:07:50]}
{[%emt 00:00:32]} 14. dxe4 {[%clk 00:06:14]} {[%emt 00:00:21]} Be6 {[%clk
00:07:34]} {[%emt 00:00:20]} 15. Bg5 {[%clk 00:04:55]} {[%emt 00:01:24]} Bxc4
16. Qxc4 {[%clk 00:04:59]} Qc5 {[%clk 00:07:21]} {[%emt 00:00:01]} 17. Qb3
{[%clk 00:04:38]} {[%emt 00:00:26]} Qxg5 {[%clk 00:07:22]} {[%emt 00:00:04]}
0-1

[Event "Snabbschacks-KM 2025"]
[Site "Linköping, Sweden"]
[Date "2025.05.20"]
[Round "8.2"]
[White "Rogoz, Vladyslav"]
[Black "Thornqvist, Ofelia"]
[Result "1-0"]
[TimeControl "15 min + 5 sek"]
[WhiteElo "2108"]
[BlackElo "1881"]

1. d4 {[%clk 00:15:09]} {[%emt 00:00:01]} Nf6 {[%clk 00:15:09]} {[%emt
00:00:01]} 2. c4 {[%clk 00:15:12]} {[%emt 00:00:02]} g6 {[%clk 00:15:13]}
{[%emt 00:00:01]} 3. Nc3 {[%clk 00:15:16]} Bg7 {[%clk 00:15:17]} {[%emt
00:00:01]} 4. e4 {[%clk 00:15:20]} {[%emt 00:00:01]} d6 {[%clk 00:15:20]}
{[%emt 00:00:01]} 5. f4 {[%clk 00:15:24]} {[%emt 00:00:02]} O-O {[%clk
00:15:00]} {[%emt 00:00:25]} 6. Nf3 {[%clk 00:15:27]} {[%emt 00:00:02]} c5
{[%clk 00:14:59]} {[%emt 00:00:06]} 7. d5 {[%clk 00:15:31]} {[%emt 00:00:01]}
e6 {[%clk 00:14:40]} {[%emt 00:00:23]} 8. Be2 {[%clk 00:15:35]} {[%emt
00:00:01]} exd5 {[%clk 00:14:35]} {[%emt 00:00:10]} 9. cxd5 {[%clk 00:15:38]}
{[%emt 00:00:02]} Nfd7 {[%clk 00:13:33]} {[%emt 00:01:07]} 10. O-O {[%clk
00:15:24]} {[%emt 00:00:19]} Re8 {[%clk 00:13:23]} {[%emt 00:00:14]} 11. Nb5
{[%clk 00:14:51]} {[%emt 00:00:39]} Qb6 {[%clk 00:12:04]} {[%emt 00:01:24]} 12.
a4 {[%clk 00:14:52]} {[%emt 00:00:04]} c4+ {[%clk 00:11:24]} {[%emt 00:00:45]}
13. Kh1 {[%clk 00:14:53]} {[%emt 00:00:04]} Rxe4 {[%clk 00:11:07]} {[%emt
00:00:22]} 14. Ng5 {[%clk 00:14:31]} {[%emt 00:00:27]} Re7 {[%clk 00:10:02]}
{[%emt 00:01:10]} 15. Bxc4 {[%clk 00:14:22]} {[%emt 00:00:14]} a6 {[%clk
00:09:56]} {[%emt 00:00:12]} 16. Nc3 {[%clk 00:13:36]} {[%emt 00:00:50]} Nc5
{[%clk 00:09:30]} {[%emt 00:00:31]} 17. a5 {[%clk 00:13:27]} {[%emt 00:00:14]}
Qc7 {[%clk 00:09:16]} {[%emt 00:00:18]} 18. Re1 {[%clk 00:12:33]} {[%emt
00:01:00]} Bg4 {[%clk 00:08:25]} {[%emt 00:00:56]} 19. Qd2 {[%clk 00:12:01]}
{[%emt 00:00:37]} h6 {[%clk 00:07:49]} {[%emt 00:00:41]} 20. h3 {[%clk
00:11:29]} {[%emt 00:00:36]} Bf5 {[%clk 00:07:38]} {[%emt 00:00:16]} 21. Nf3
{[%clk 00:11:22]} {[%emt 00:00:13]} Ne4 {[%clk 00:06:24]} {[%emt 00:01:19]} 22.
Nxe4 {[%clk 00:11:17]} {[%emt 00:00:10]} Rxe4 {[%clk 00:06:18]} {[%emt
00:00:11]} 23. Be2 {[%clk 00:11:05]} {[%emt 00:00:16]} Nd7 {[%clk 00:06:11]}
{[%emt 00:00:13]} 24. Rd1 {[%clk 00:10:00]} {[%emt 00:01:10]} Nc5 {[%clk
00:05:28]} {[%emt 00:00:48]} 25. Ra3 {[%clk 00:09:58]} {[%emt 00:00:07]} Rae8
{[%clk 00:05:22]} {[%emt 00:00:11]} 26. Bf1 {[%clk 00:10:01]} {[%emt 00:00:01]}
Qe7 {[%clk 00:04:44]} {[%emt 00:00:43]} 27. b4 {[%clk 00:09:55]} {[%emt
00:00:11]} Nd7 {[%clk 00:04:06]} {[%emt 00:00:43]} 28. Bd3 {[%clk 00:09:57]}
{[%emt 00:00:03]} Re3 {[%clk 00:03:33]} {[%emt 00:00:38]} 29. Bxf5 {[%clk
00:09:33]} {[%emt 00:00:29]} Re2 {[%clk 00:03:23]} {[%emt 00:00:16]} 30. Qd3
{[%clk 00:08:30]} {[%emt 00:01:08]} gxf5 {[%clk 00:03:26]} {[%emt 00:00:02]} 31.
Qxf5 {[%clk 00:08:29]} {[%emt 00:00:06]} Nf6 {[%clk 00:03:13]} {[%emt
00:00:18]} 32. Kh2 {[%clk 00:07:53]} {[%emt 00:00:40]} Rxg2+ {[%clk 00:03:06]}
{[%emt 00:00:13]} 33. Kh1 {[%clk 00:07:30]} {[%emt 00:00:27]} Qe2 {[%clk
00:02:55]} {[%emt 00:00:17]} 34. Qd3 {[%clk 00:07:25]} {[%emt 00:00:10]} Qxd3
{[%clk 00:02:44]} {[%emt 00:00:16]} 35. Raxd3 {[%clk 00:07:22]} {[%emt
00:00:08]} Ree2 {[%clk 00:02:38]} {[%emt 00:00:11]} 36. Rg1 {[%clk 00:07:17]}
{[%emt 00:00:10]} Rxg1+ {[%clk 00:02:19]} {[%emt 00:00:22]} 37. Nxg1 {[%clk
00:06:46]} {[%emt 00:00:37]} Ne4 {[%clk 00:02:11]} {[%emt 00:00:13]} 38. Nxe2
{[%clk 00:06:48]} {[%emt 00:00:03]} Nf2+ {[%clk 00:02:15]} 39. Kg2 {[%clk
00:06:45]} {[%emt 00:00:08]} Nxd3 {[%clk 00:02:19]} {[%emt 00:00:01]} 40. Bd2
{[%clk 00:06:49]} {[%emt 00:00:02]} Kf8 {[%clk 00:02:18]} {[%emt 00:00:07]} 41.
Kf3 {[%clk 00:06:51]} {[%emt 00:00:02]} Nb2 {[%clk 00:02:15]} {[%emt 00:00:07]}
42. Ke4 {[%clk 00:05:39]} {[%emt 00:01:17]} Ke7 {[%clk 00:02:00]} {[%emt
00:00:20]} 43. Ng3 {[%clk 00:05:28]} {[%emt 00:00:16]} Bf6 {[%clk 00:01:42]}
{[%emt 00:00:23]} 44. Nf5+ {[%clk 00:05:31]} {[%emt 00:00:02]} Kd7 {[%clk
00:01:40]} {[%emt 00:00:08]} 45. Nxh6 {[%clk 00:05:34]} {[%emt 00:00:02]} Nc4
{[%clk 00:01:43]} {[%emt 00:00:02]} 46. Be1 {[%clk 00:05:22]} {[%emt 00:00:17]}
Bg7 {[%clk 00:01:40]} {[%emt 00:00:08]} 47. Nf5 {[%clk 00:05:23]} {[%emt
00:00:04]} Bf6 {[%clk 00:01:42]} {[%emt 00:00:03]} 48. h4 {[%clk 00:05:26]}
{[%emt 00:00:02]} Ke8 {[%clk 00:01:28]} {[%emt 00:00:18]} 49. h5 {[%clk
00:05:27]} {[%emt 00:00:04]} Kf8 {[%clk 00:01:29]} {[%emt 00:00:05]} 50. Kd3
{[%clk 00:03:58]} {[%emt 00:01:33]} Nb2+ {[%clk 00:01:23]} {[%emt 00:00:11]} 51.
Kc2 {[%clk 00:04:02]} {[%emt 00:00:01]} Nc4 {[%clk 00:01:20]} {[%emt 00:00:09]}
52. Kb3 {[%clk 00:04:05]} {[%emt 00:00:02]} Nb2 {[%clk 00:00:56]} {[%emt
00:00:29]} 53. Nxd6 {[%clk 00:03:41]} {[%emt 00:00:28]} Nd3 {[%clk 00:01:00]}
{[%emt 00:00:02]} 54. Bd2 {[%clk 00:03:37]} {[%emt 00:00:09]} Be7 {[%clk
00:00:36]} {[%emt 00:00:29]} 55. Nxb7 {[%clk 00:03:39]} {[%emt 00:00:03]} Kg7
{[%clk 00:00:38]} {[%emt 00:00:02]} 56. d6 {[%clk 00:03:42]} {[%emt 00:00:02]}
1-0

[Event "Snabbschacks-KM 2025"]
[Site "Linköping, Sweden"]
[Date "2025.05.20"]
[Round "8.3"]
[White "Olsson, Simon"]
[Black "Zoupounidis, Christos"]
[Result "1-0"]
[TimeControl "15 min + 5 sek"]
[WhiteElo "2048"]
[BlackElo "1604"]

1. d4 {[%clk 00:15:08]} Nf6 {[%clk 00:15:09]} {[%emt 00:00:01]} 2. c4 {[%clk
00:15:12]} e6 {[%clk 00:15:13]} {[%emt 00:00:02]} 3. Nc3 {[%clk 00:15:16]} Bb4
{[%clk 00:15:17]} 4. a3 {[%clk 00:15:21]} Bxc3+ {[%clk 00:15:21]} {[%emt
00:00:01]} 5. bxc3 {[%clk 00:15:24]} {[%emt 00:00:02]} Ne4 {[%clk 00:15:25]}
{[%emt 00:00:01]} 6. Qc2 {[%clk 00:15:10]} {[%emt 00:00:19]} f5 {[%clk
00:15:28]} {[%emt 00:00:01]} 7. g3 {[%clk 00:14:11]} {[%emt 00:01:04]} O-O
{[%clk 00:15:29]} {[%emt 00:00:05]} 8. Bg2 {[%clk 00:13:46]} {[%emt 00:00:30]}
d5 {[%clk 00:15:32]} {[%emt 00:00:02]} 9. c5 {[%clk 00:13:45]} {[%emt
00:00:07]} Nd7 {[%clk 00:15:18]} {[%emt 00:00:19]} 10. Nf3 {[%clk 00:13:11]}
{[%emt 00:00:39]} b6 {[%clk 00:14:47]} {[%emt 00:00:36]} 11. c6 {[%clk
00:12:22]} {[%emt 00:00:55]} Ndf6 {[%clk 00:14:50]} {[%emt 00:00:02]} 12. Ne5
{[%clk 00:11:40]} {[%emt 00:00:46]} Ba6 {[%clk 00:13:03]} {[%emt 00:01:52]} 13.
a4 {[%clk 00:10:58]} {[%emt 00:00:47]} h5 {[%clk 00:12:09]} {[%emt 00:00:58]}
14. f3 {[%clk 00:10:00]} {[%emt 00:01:04]} Nd6 {[%clk 00:11:42]} {[%emt
00:00:32]} 15. Ba3 {[%clk 00:07:25]} {[%emt 00:02:40]} Nc4 {[%clk 00:11:18]}
{[%emt 00:00:29]} 16. Nxc4 {[%clk 00:07:02]} {[%emt 00:00:29]} Bxc4 {[%clk
00:11:21]} {[%emt 00:00:01]} 17. Bxf8 {[%clk 00:07:05]} {[%emt 00:00:02]} Qxf8
{[%clk 00:11:24]} {[%emt 00:00:02]} 18. O-O {[%clk 00:05:52]} {[%emt 00:01:18]}
Qe8 {[%clk 00:11:15]} {[%emt 00:00:14]} 19. Rfb1 {[%clk 00:05:23]} {[%emt
00:00:34]} Qxc6 {[%clk 00:11:02]} {[%emt 00:00:18]} 20. e3 {[%clk 00:04:59]}
{[%emt 00:00:29]} Rf8 {[%clk 00:09:44]} {[%emt 00:01:23]} 21. a5 {[%clk
00:04:56]} {[%emt 00:00:08]} Nd7 {[%clk 00:09:28]} {[%emt 00:00:20]} 22. axb6
{[%clk 00:04:46]} {[%emt 00:00:16]} axb6 {[%clk 00:09:32]} {[%emt 00:00:02]} 23.
Qa4 {[%clk 00:04:38]} {[%emt 00:00:12]} Qd6 {[%clk 00:09:12]} {[%emt 00:00:24]}
24. Qa3 {[%clk 00:04:14]} {[%emt 00:00:29]} c5 {[%clk 00:09:16]} {[%emt
00:00:02]} 25. dxc5 {[%clk 00:03:02]} {[%emt 00:01:18]} bxc5 {[%clk 00:09:19]}
{[%emt 00:00:02]} 26. Qa7 {[%clk 00:03:06]} {[%emt 00:00:01]} d4 {[%clk
00:08:53]} {[%emt 00:00:30]} 27. cxd4 {[%clk 00:03:01]} {[%emt 00:00:10]} cxd4
{[%clk 00:08:55]} {[%emt 00:00:03]} 28. Qxd4 {[%clk 00:03:04]} {[%emt
00:00:02]} Qc6 {[%clk 00:08:33]} {[%emt 00:00:27]} 29. Rc1 {[%clk 00:02:39]}
{[%emt 00:00:30]} Rc8 {[%clk 00:08:37]} {[%emt 00:00:01]} 30. Bf1 {[%clk
00:02:41]} {[%emt 00:00:03]} Qxf3 {[%clk 00:08:11]} {[%emt 00:00:29]} 31. Bxc4
{[%clk 00:02:43]} {[%emt 00:00:04]} Kh8 {[%clk 00:07:59]} {[%emt 00:00:17]} 32.
Bxe6 {[%clk 00:02:40]} {[%emt 00:00:09]} Rxc1+ {[%clk 00:07:55]} {[%emt
00:00:09]} 33. Rxc1 {[%clk 00:02:44]} {[%emt 00:00:01]} Nf6 {[%clk 00:07:59]}
34. Qf4 {[%clk 00:02:29]} {[%emt 00:00:19]} Qe2 {[%clk 00:07:44]} {[%emt
00:00:20]} 35. Rc8+ {[%clk 00:02:24]} {[%emt 00:00:11]} Kh7 {[%clk 00:07:48]}
36. Bxf5+ {[%clk 00:02:27]} {[%emt 00:00:03]} g6 {[%clk 00:07:47]} {[%emt
00:00:05]} 37. Rc7+ {[%clk 00:02:22]} {[%emt 00:00:11]} Kh8 {[%clk 00:07:30]}
{[%emt 00:00:22]} 38. Qh6+ {[%clk 00:02:24]} {[%emt 00:00:03]} Kg8 {[%clk
00:07:30]} {[%emt 00:00:06]} 39. Qg7# {[%clk 00:02:28]} {[%emt 00:00:01]} 1-0

[Event "Snabbschacks-KM 2025"]
[Site "Linköping, Sweden"]
[Date "2025.05.20"]
[Round "8.4"]
[White "Varro, Daniel"]
[Black "Gustafsson, Nils"]
[Result "0-1"]
[TimeControl "15 min + 5 sek"]
[WhiteElo "1906"]
[BlackElo "1861"]

1. Nf3 {[%clk 00:15:07]} {[%emt 00:00:02]} Nf6 {[%clk 00:15:04]} {[%emt
00:00:06]} 2. c4 {[%clk 00:15:11]} {[%emt 00:00:02]} Nc6 {[%clk 00:14:54]}
{[%emt 00:00:16]} 3. d4 {[%clk 00:14:53]} {[%emt 00:00:22]} e6 {[%clk
00:14:57]} {[%emt 00:00:02]} 4. g3 {[%clk 00:14:51]} {[%emt 00:00:08]} Bb4+
{[%clk 00:14:59]} {[%emt 00:00:03]} 5. Bd2 {[%clk 00:13:16]} {[%emt 00:01:40]}
Qe7 {[%clk 00:14:56]} {[%emt 00:00:07]} 6. Bg2 {[%clk 00:13:16]} {[%emt
00:00:05]} Ne4 {[%clk 00:13:15]} {[%emt 00:01:46]} 7. O-O {[%clk 00:11:52]}
{[%emt 00:01:29]} f5 {[%clk 00:12:05]} {[%emt 00:01:16]} 8. a3 {[%clk
00:10:21]} {[%emt 00:01:36]} Bxd2 {[%clk 00:11:44]} {[%emt 00:00:25]} 9. Nbxd2
{[%clk 00:10:20]} {[%emt 00:00:06]} O-O {[%clk 00:10:50]} {[%emt 00:01:00]} 10.
d5 {[%clk 00:08:30]} {[%emt 00:01:55]} exd5 {[%clk 00:09:46]} {[%emt 00:01:09]}
11. cxd5 {[%clk 00:08:28]} {[%emt 00:00:06]} Ne5 {[%clk 00:08:22]} {[%emt
00:01:30]} 12. Nxe5 {[%clk 00:08:12]} {[%emt 00:00:20]} Qxe5 {[%clk 00:08:22]}
{[%emt 00:00:06]} 13. Nc4 {[%clk 00:08:16]} {[%emt 00:00:02]} Qf6 {[%clk
00:07:28]} {[%emt 00:00:58]} 14. d6 {[%clk 00:05:45]} {[%emt 00:02:36]} cxd6
{[%clk 00:05:45]} {[%emt 00:01:48]} 15. Bxe4 {[%clk 00:04:21]} {[%emt
00:01:29]} fxe4 {[%clk 00:05:45]} {[%emt 00:00:05]} 16. Qxd6 {[%clk 00:04:24]}
{[%emt 00:00:02]} Qxd6 {[%clk 00:04:16]} {[%emt 00:01:35]} 17. Nxd6 {[%clk
00:04:27]} {[%emt 00:00:01]} b6 {[%clk 00:03:31]} {[%emt 00:00:50]} 18. e3
{[%clk 00:03:11]} {[%emt 00:01:21]} Ba6 {[%clk 00:03:01]} {[%emt 00:00:36]} 19.
Nxe4 {[%clk 00:01:50]} {[%emt 00:01:25]} Bxf1 {[%clk 00:02:57]} {[%emt
00:00:09]} 20. Kxf1 {[%clk 00:01:54]} {[%emt 00:00:01]} d5 {[%clk 00:02:44]}
{[%emt 00:00:19]} 21. Nc3 {[%clk 00:01:52]} {[%emt 00:00:06]} Rfd8 {[%clk
00:01:02]} {[%emt 00:01:47]} 22. Rd1 {[%clk 00:01:55]} {[%emt 00:00:02]} Rac8
{[%clk 00:00:48]} {[%emt 00:00:19]} 23. Nxd5 {[%clk 00:01:08]} {[%emt
00:00:52]} Kf7 {[%clk 00:00:51]} {[%emt 00:00:01]} 24. e4 {[%clk 00:01:11]}
{[%emt 00:00:02]} Rc4 {[%clk 00:00:15]} {[%emt 00:00:41]} 25. Re1 {[%clk
00:00:26]} {[%emt 00:00:50]} Rc2 {[%clk 00:00:09]} {[%emt 00:00:11]} 26. Re2
{[%clk 00:00:29]} {[%emt 00:00:02]} Rxe2 {[%clk 00:00:09]} {[%emt 00:00:05]} 27.
Kxe2 {[%clk 00:00:32]} {[%emt 00:00:01]} Ke6 {[%clk 00:00:12]} {[%emt
00:00:03]} 28. f4 {[%clk 00:00:34]} {[%emt 00:00:03]} g6 {[%clk 00:00:14]}
{[%emt 00:00:03]} 29. Ke3 {[%clk 00:00:37]} {[%emt 00:00:01]} Rc8 {[%clk
00:00:16]} {[%emt 00:00:04]} 30. Nc3 {[%clk 00:00:32]} {[%emt 00:00:11]} a6
{[%clk 00:00:11]} {[%emt 00:00:10]} 31. g4 {[%clk 00:00:32]} {[%emt 00:00:04]}
h6 {[%clk 00:00:09]} {[%emt 00:00:07]} 32. h4 {[%clk 00:00:32]} {[%emt
00:00:04]} Rc5 {[%clk 00:00:10]} {[%emt 00:00:05]} 33. g5 {[%clk 00:00:09]}
{[%emt 00:00:28]} hxg5 {[%clk 00:00:13]} {[%emt 00:00:02]} 34. hxg5 {[%clk
00:00:11]} {[%emt 00:00:02]} a5 {[%clk 00:00:08]} {[%emt 00:00:11]} 35. Kd4
{[%clk 00:00:11]} {[%emt 00:00:05]} Rc8 {[%clk 00:00:11]} {[%emt 00:00:03]} 36.
Ne2 {[%clk 00:00:07]} {[%emt 00:00:08]} Rc2 {[%clk 00:00:10]} {[%emt 00:00:06]}
37. Ng3 {[%clk 00:00:07]} {[%emt 00:00:06]} Rxb2 {[%clk 00:00:13]} {[%emt
00:00:02]} 38. f5+ {[%clk 00:00:10]} {[%emt 00:00:01]} gxf5 {[%clk 00:00:17]}
{[%emt 00:00:01]} 39. exf5+ {[%clk 00:00:13]} {[%emt 00:00:02]} Kf7 {[%clk
00:00:22]} 40. Ke5 {[%clk 00:00:14]} {[%emt 00:00:04]} Rb3 {[%clk 00:00:25]}
{[%emt 00:00:02]} 41. Nh5 {[%clk 00:00:10]} {[%emt 00:00:07]} b5 {[%clk
00:00:16]} {[%emt 00:00:15]} 42. g6+ {[%clk 00:00:14]} {[%emt 00:00:02]} Kg8
{[%clk 00:00:14]} {[%emt 00:00:06]} 43. f6 {[%clk 00:00:15]} {[%emt 00:00:04]}
Re3+ {[%clk 00:00:14]} {[%emt 00:00:05]} 44. Kf5 {[%clk 00:00:12]} {[%emt
00:00:08]} Rf3+ {[%clk 00:00:09]} {[%emt 00:00:10]} 45. Nf4 {[%clk 00:00:07]}
{[%emt 00:00:09]} b4 {[%clk 00:00:08]} {[%emt 00:00:07]} 46. f7+ {[%clk
00:00:06]} {[%emt 00:00:06]} Kg7 {[%clk 00:00:12]} {[%emt 00:00:01]} 47. Ke4
{[%clk 00:00:09]} {[%emt 00:00:02]} Rxf4+ {[%clk 00:00:14]} {[%emt 00:00:04]}
48. Kxf4 {[%clk 00:00:12]} {[%emt 00:00:02]} bxa3 {[%emt 00:00:01]} 49. Kf5
{[%clk 00:00:08]} {[%emt 00:00:08]} a2 {[%clk 00:00:17]} {[%emt 00:00:06]} 50.
Ke6 {[%clk 00:00:12]} a1=Q {[%clk 00:00:12]} {[%emt 00:00:09]} 0-1

[Event "Snabbschacks-KM 2025"]
[Site "Linköping, Sweden"]
[Date "2025.05.20"]
[Round "8.5"]
[White "Larsson, Emma 2008"]
[Black "Qwarfort, Fredrik"]
[Result "0-1"]
[TimeControl "15 min + 5 sek"]
[WhiteElo "1848"]
[BlackElo "1827"]

1. e4 {[%clk 00:14:59]} {[%emt 00:00:11]} d6 {[%clk 00:15:08]} {[%emt
00:00:03]} 2. d4 {[%clk 00:15:00]} {[%emt 00:00:03]} Nf6 {[%clk 00:15:12]}
{[%emt 00:00:02]} 3. Nc3 {[%clk 00:14:59]} {[%emt 00:00:06]} g6 {[%clk
00:15:15]} {[%emt 00:00:01]} 4. f4 {[%clk 00:14:48]} {[%emt 00:00:16]} Bg7
{[%clk 00:15:19]} {[%emt 00:00:02]} 5. Nf3 {[%clk 00:14:35]} {[%emt 00:00:18]}
O-O {[%clk 00:15:21]} {[%emt 00:00:03]} 6. Bd3 {[%clk 00:14:08]} {[%emt
00:00:31]} c5 {[%clk 00:15:08]} {[%emt 00:00:19]} 7. h3 {[%clk 00:12:56]}
{[%emt 00:01:17]} cxd4 {[%clk 00:15:08]} {[%emt 00:00:05]} 8. Nxd4 {[%clk
00:12:51]} {[%emt 00:00:11]} Nc6 {[%clk 00:15:11]} {[%emt 00:00:03]} 9. Nxc6
{[%clk 00:12:12]} {[%emt 00:00:44]} bxc6 {[%clk 00:15:14]} {[%emt 00:00:01]} 10.
Be3 {[%clk 00:12:01]} {[%emt 00:00:16]} Qa5 {[%clk 00:14:03]} {[%emt 00:01:16]}
11. O-O {[%clk 00:09:29]} {[%emt 00:02:37]} Rb8 {[%clk 00:14:04]} {[%emt
00:00:04]} 12. Rb1 {[%clk 00:08:29]} {[%emt 00:01:05]} Bd7 {[%clk 00:12:00]}
{[%emt 00:02:09]} 13. a3 {[%clk 00:07:42]} {[%emt 00:00:51]} c5 {[%clk
00:11:54]} {[%emt 00:00:11]} 14. Bc4 {[%clk 00:07:16]} {[%emt 00:00:31]} Rxb2
{[%clk 00:10:14]} {[%emt 00:01:46]} 15. Rxb2 {[%clk 00:05:42]} {[%emt
00:01:39]} Qxc3 {[%clk 00:10:17]} {[%emt 00:00:01]} 16. Bxf7+ {[%clk 00:04:56]}
{[%emt 00:00:52]} Rxf7 {[%clk 00:09:14]} {[%emt 00:01:09]} 17. Rb3 {[%clk
00:04:57]} {[%emt 00:00:03]} Qc4 {[%clk 00:09:05]} {[%emt 00:00:14]} 18. e5
{[%clk 00:04:19]} {[%emt 00:00:43]} Nd5 {[%clk 00:07:46]} {[%emt 00:01:23]} 19.
exd6 {[%clk 00:03:40]} {[%emt 00:00:44]} Nxe3 {[%clk 00:06:53]} {[%emt
00:00:58]} 20. Qe1 {[%clk 00:02:37]} {[%emt 00:01:08]} Qxf1+ {[%clk 00:06:09]}
{[%emt 00:00:49]} 21. Qxf1 {[%clk 00:02:28]} {[%emt 00:00:14]} Nxf1 {[%clk
00:06:13]} {[%emt 00:00:02]} 22. dxe7 {[%clk 00:01:48]} {[%emt 00:00:45]} Rxf4
{[%clk 00:05:28]} {[%emt 00:00:50]} 23. Rb8+ {[%clk 00:01:43]} {[%emt
00:00:10]} Kf7 {[%clk 00:05:32]} 24. Rb7 {[%clk 00:01:00]} {[%emt 00:00:49]}
Bd4+ {[%clk 00:05:23]} {[%emt 00:00:14]} 25. Kh1 {[%clk 00:01:02]} {[%emt
00:00:03]} Kxe7 {[%clk 00:05:24]} {[%emt 00:00:05]} 26. Rxa7 {[%clk 00:01:05]}
{[%emt 00:00:02]} h5 {[%clk 00:05:13]} {[%emt 00:00:15]} 27. a4 {[%clk
00:01:09]} {[%emt 00:00:01]} h4 {[%clk 00:05:17]} {[%emt 00:00:01]} 28. c3
{[%clk 00:00:48]} {[%emt 00:00:26]} Ng3+ {[%clk 00:04:57]} {[%emt 00:00:24]} 29.
Kh2 {[%clk 00:00:52]} Be3 {[%clk 00:04:55]} {[%emt 00:00:07]} 30. c4 {[%clk
00:00:38]} {[%emt 00:00:19]} Rf1 {[%clk 00:04:57]} {[%emt 00:00:02]} 31. Rxd7+
{[%clk 00:00:42]} {[%emt 00:00:02]} Kxd7 {[%clk 00:05:00]} {[%emt 00:00:02]} 32.
a5 {[%clk 00:00:46]} {[%emt 00:00:02]} Bg1# {[%clk 00:05:03]} {[%emt 00:00:01]}
0-1